bitfinex-derivatives/quotes_SOLF0:USTF0_20260105
["timestamp","ask_amount","ask_price","bid_price","bid_amount"]
[1767651870781,0.3744342,138.9,138.84,0.31355138]
[1767651871982,0.31159496,138.89,138.84,0.31355138]
[1767651872778,0.31159496,138.89,138.83,6.4826]
[1767651873679,0.31159496,138.89,138.83,6.78930369]
[1767651875393,6.79189496,138.89,138.83,6.78930369]
[1767651876481,6.79189496,138.89,138.83,0.30670369]
[1767651877382,0.31159496,138.87,138.81,0.30670369]
[1767651878192,0.04902095,138.85,138.81,0.30670369]
[1767651886695,0.04902095,138.85,138.81,6.79050369]
[1767651893898,0.04902095,138.85,138.81,0.30670369]
[1767651904506,0.04902095,138.85,138.81,6.79060369]
[1767651904910,0.04902095,138.85,138.82,0.32387159]
[1767651905304,0.3368631,138.91,138.83,0.32387159]
[1767651905814,6.4798,138.9,138.84,6.80627159]
[1767651906105,6.8166631,138.9,138.84,6.80627159]
[1767651906712,0.3368631,138.88,138.82,6.80687159]
[1767651907908,0.3368631,138.88,138.82,0.32387159]
[1767651908306,0.3368631,138.87,138.82,0.32387159]
[1767651910305,6.8181631,138.87,138.82,0.32387159]
[1767651912612,0.3368631,138.86,138.8,0.32387159]
[1767651912916,0.3368631,138.84,138.78,6.80897159]
[1767651915015,6.8194631,138.84,138.78,0.32387159]
[1767651916312,185.8952,138.88,138.76,0.32387159]
[1767651916313,0.3368631,138.82,138.76,0.32387159]
[1767651916709,6.8204631,138.82,138.76,0.32387159]
[1767651916914,0.3368631,138.81,138.72,0.32387159]
[1767651917113,0.3368631,138.81,138.73,0.32387159]
[1767651917513,0.3368631,138.79,138.73,0.32387159]
[1767651919816,0.3368631,138.78,138.73,0.32387159]
[1767651920015,0.3368631,138.78,138.71,0.32387159]
[1767651920217,6.8227631,138.77,138.71,0.32387159]
[1767651920807,0.3368631,138.74,138.67,8.44164569]
[1767651922615,0.3368631,138.74,138.68,0.32387159]
[1767651923420,0.3368631,138.74,138.68,6.81377159]
[1767651923617,85.4568631,138.76,138.69,1.95154569]
[1767651924127,0.3368631,138.75,138.69,1.95154569]
[1767651924716,0.3368631,138.75,138.69,8.44104569]
[1767651927220,0.3368631,138.75,138.69,0.32387159]
[1767651929325,85.12,138.76,138.7,0.32387159]
[1767651929513,85.12,138.76,138.71,0.04790433]
[1767651929716,85.4568631,138.76,138.71,0.04790433]
[1767651930926,85.12,138.76,138.71,0.37458331]
[1767651931125,1.947029,138.78,138.71,0.37458331]
[1767651933926,1.947029,138.78,138.71,6.86308331]
[1767651937134,1.947029,138.78,138.72,6.4881]
[1767651937632,1.947029,138.78,138.72,6.81477898]
[1767651938027,1.947029,138.78,138.73,0.32667898]
[1767651938227,1.6276741,138.78,138.73,0.32667898]
[1767651939934,91.9446549,138.79,138.73,0.32667898]
[1767651942338,0.3193549,138.78,138.73,0.32667898]
[1767651942734,91.6253,138.79,138.73,0.32667898]
[1767651944635,87.107029,138.8,138.73,0.32667898]
[1767651945536,0.3193549,138.79,138.73,0.32667898]
[1767651947241,0.3193549,138.79,138.73,6.81437898]
[1767651952139,1.947029,138.79,138.73,6.81437898]
[1767651955044,6.8108428,138.78,138.71,6.80109078]
[1767651955344,1.6276741,138.77,138.71,6.80109078]
[1767651956141,1.9531169,138.77,138.71,6.80109078]
[1767651957845,0.3254428,138.77,138.71,6.80109078]
[1767651958044,1.9531169,138.77,138.71,6.80109078]
[1767651960942,1.6276741,138.77,138.73,0.30752866]
[1767651961345,1.6276741,138.77,138.72,0.30752866]
[1767651962646,1.95724938,138.77,138.72,0.30752866]
[1767651963049,1.95724938,138.77,138.71,6.4882]
[1767651963050,1.95724938,138.75,138.68,0.30752866]
[1767651964451,8.44444938,138.75,138.68,6.79752866]
[1767651967650,1.95724938,138.75,138.68,6.79752866]
[1767651967951,1.95724938,138.75,138.69,0.30752866]
[1767651968152,0.32957528,138.75,138.7,0.30752866]
[1767651969154,0.32957528,138.75,138.7,6.79662866]
[1767651971648,0.32957528,138.75,138.7,0.30752866]
[1767651975862,0.32957528,138.75,138.71,0.04936459]
[1767651980764,6.81687528,138.74,138.71,0.04936459]
[1767651980963,6.81687528,138.74,138.68,0.30752866]
[1767651980964,0.32957528,138.73,138.68,0.30752866]
[1767651983165,6.81727528,138.73,138.68,0.30752866]
[1767651983366,0.32957528,138.72,138.65,0.30752866]
[1767651983770,0.32957528,138.72,138.66,6.79842866]
[1767651984071,0.05104932,138.7,138.66,6.79842866]
[1767651984858,0.05104932,138.7,138.66,0.30752866]
[1767651985270,0.3806246,138.7,138.64,6.79912866]
[1767651985470,6.8698246,138.7,138.65,0.30752866]
[1767651985772,6.8698246,138.7,138.64,6.4916]
[1767651985773,0.05104932,138.7,138.64,0.30752866]
[1767651986364,0.05104932,138.7,138.66,6.4909]
[1767651992279,0.05104932,138.7,138.66,6.8072851]
[1767651995286,0.05104932,138.7,138.66,0.3163851]
[1767651995982,0.05104932,138.7,138.67,0.3163851]
[1767651998185,6.81976754,138.73,138.67,0.3163851]
[1767651999089,6.82036754,138.72,138.67,0.3163851]
[1767652000589,6.4887,138.71,138.65,6.8077851]
[1767652000890,6.82076754,138.71,138.65,6.8077851]
[1767652001888,6.82076754,138.71,138.67,0.04651989]
[1767652003990,0.33206754,138.71,138.67,0.04651989]
[1767652008087,87.7078258,138.74,138.67,0.36290499]
[1767652008088,6.4876,138.74,138.67,0.36290499]
[1767652008395,85.51206754,138.74,138.67,0.36290499]
[1767652008582,0.33206754,138.73,138.67,0.36290499]
[1767652009586,85.18,138.74,138.67,0.04651989]
[1767652009587,0.33206754,138.72,138.67,0.04651989]
[1767652011695,6.82076754,138.71,138.67,0.04651989]
[1767652012697,0.33206754,138.71,138.67,0.04651989]
[1767652013892,6.82076754,138.71,138.67,0.04651989]
[1767652019001,0.33206754,138.71,138.67,0.04651989]
[1767652022606,6.82066754,138.71,138.67,0.04651989]
[1767652024402,0.3132426,138.69,138.67,0.04651989]
[1767652024602,0.3132426,138.69,138.63,6.80482444]
[1767652024603,0.3132426,138.69,138.63,0.31282444]
[1767652025295,0.3132426,138.69,138.63,6.80502444]
[1767652025807,0.3132426,138.68,138.61,0.31282444]
[1767652026204,85.18,138.69,138.59,6.80692444]
[1767652026205,0.3132426,138.65,138.59,6.80692444]
[1767652026402,0.3132426,138.65,138.59,0.31282444]
[1767652029201,6.8049426,138.65,138.59,0.31282444]
[1767652029401,0.04564406,138.66,138.58,6.4947]
[1767652029402,0.3132426,138.64,138.58,6.4947]
[1767652029807,0.3132426,138.64,138.57,0.31282444]
[1767652030212,0.05509015,138.62,138.57,0.31282444]
[1767652031514,0.36833275,138.62,138.57,0.31282444]
[1767652031708,6.86143275,138.62,138.54,7.75193774]
[1767652032007,0.36833275,138.62,138.55,0.31282444]
[1767652032510,0.3132426,138.62,138.56,6.80842444]
[1767652032709,0.05279849,138.6,138.56,6.80842444]
[1767652033110,0.05279849,138.6,138.56,0.31282444]
[1767652034323,0.36604109,138.6,138.53,0.31282444]
[1767652035611,6.85994109,138.6,138.54,0.31282444]
[1767652039430,0.3132426,138.59,138.54,0.31282444]
[1767652039635,0.3132426,138.59,138.53,6.497]
[1767652039822,0.3132426,138.59,138.53,6.80982444]
[1767652040224,0.3132426,138.58,138.53,0.31282444]
[1767652041134,0.05486838,138.57,138.53,0.31282444]
[1767652041439,0.05486838,138.57,138.51,1.94675001]
[1767652042039,6.86341098,138.57,138.51,0.31282444]
[1767652042530,0.05486838,138.57,138.52,6.81032444]
[1767652042737,0.05486838,138.57,138.54,0.31282444]
[1767652043129,0.05486838,138.57,138.54,1.94675001]
[1767652043331,0.3132426,138.61,138.54,1.94675001]
[1767652043530,6.8069426,138.61,138.54,1.94675001]
[1767652043734,6.8069426,138.61,138.54,1.99575271]
[1767652044234,6.8069426,138.61,138.55,0.31282444]
[1767652044738,85.5532426,138.62,138.56,1.94675001]
[1767652045542,85.5532426,138.62,138.58,0.0494241]
[1767652046948,0.3132426,138.62,138.58,0.0494241]
[1767652052140,0.3132426,138.62,138.56,1.94675001]
[1767652052346,0.0514004,138.61,138.56,1.94675001]
[1767652052547,0.37626059,138.61,138.56,1.94675001]
[1767652053243,6.86966059,138.61,138.56,1.94675001]
[1767652053848,0.0514004,138.61,138.56,1.94675001]
[1767652054051,0.0514004,138.61,138.57,0.32877186]
[1767652055035,0.0514004,138.61,138.56,1.63392557]
[1767652055239,0.0514004,138.61,138.57,0.32877186]
[1767652075665,2.01550227,138.61,138.56,6.4956]
[1767652076065,2.01550227,138.61,138.56,6.83109649]
[1767652076568,1.68532597,138.61,138.56,6.83109649]
[1767652076961,1.68532597,138.61,138.57,0.33549649]
[1767652080467,1.63392557,138.59,138.54,6.4962]
[1767652080767,1.96410187,138.59,138.54,6.4962]
[1767652081271,0.04772614,138.58,138.54,6.4962]
[1767652081677,0.04772614,138.58,138.54,6.83516302]
[1767652083972,0.04772614,138.58,138.54,0.33896302]
[1767652091277,0.04772614,138.58,138.55,0.33896302]
[1767652091980,0.3314155,138.61,138.56,0.33896302]
[1767652092190,0.3314155,138.64,138.57,0.33896302]
[1767652092585,6.8236155,138.64,138.57,0.33896302]
[1767652092786,0.3314155,138.64,138.57,0.33896302]
[1767652092974,0.3314155,138.64,138.59,0.33896302]
[1767652093377,0.3314155,138.64,138.59,0.38678507]
[1767652094182,85.24,138.66,138.61,0.33896302]
[1767652094183,0.3314155,138.66,138.61,0.33896302]
[1767652094982,0.3314155,138.66,138.62,0.0470172]
[1767652095588,1.96534107,138.68,138.62,0.0470172]
[1767652095808,1.96534107,138.68,138.62,0.38598022]
[1767652095809,0.3314155,138.68,138.62,0.38598022]
[1767652096694,6.8215155,138.68,138.62,0.38598022]
[1767652097090,6.8220155,138.67,138.62,0.38598022]
[1767652097699,0.3314155,138.66,138.62,0.0470172]
[1767652098288,6.4906,138.67,138.62,0.0470172]
[1767652098289,0.3314155,138.65,138.62,0.0470172]
[1767652098492,0.38468071,138.65,138.58,0.33896302]
[1767652098997,0.05326521,138.65,138.6,0.33896302]
[1767652099384,6.8222155,138.67,138.6,0.33896302]
[1767652099785,0.05197226,138.64,138.6,0.33896302]
[1767652103894,0.05197226,138.64,138.61,0.33896302]
[1767652104899,0.3314155,138.69,138.62,0.33896302]
[1767652106186,0.3314155,138.69,138.64,0.04973715]
[1767652106696,6.8210155,138.69,138.64,0.04973715]
[1767652111900,0.32465956,138.68,138.64,0.04973715]
[1767652115708,0.32465956,138.71,138.65,0.33866142]
[1767652116211,0.32465956,138.71,138.65,6.83006142]
[1767652122810,6.81325956,138.71,138.65,6.83006142]
[1767652126113,0.32465956,138.7,138.65,6.83006142]
[1767652129414,6.81385956,138.7,138.65,0.33866142]
[1767652130217,0.32465956,138.74,138.65,0.33866142]
[1767652131014,6.4878,138.73,138.68,0.05472088]
[1767652135214,6.4883,138.72,138.68,0.05472088]
[1767652135419,6.82740917,138.72,138.68,0.05472088]
[1767652136719,6.4888,138.71,138.68,0.05472088]
[1767652140723,6.4888,138.71,138.65,0.32940053]
[1767652141031,6.54321399,138.71,138.65,0.32940053]
[1767652143334,0.05441399,138.71,138.65,0.32940053]
[1767652145535,0.05441399,138.71,138.65,6.82080053]
[1767652148040,0.36306264,138.71,138.65,6.82080053]
[1767652150436,0.30864865,138.7,138.65,6.82080053]
[1767652155547,0.30864865,138.69,138.63,6.80099288]
[1767652155747,2.8584925,138.69,138.63,6.80099288]
[1767652156342,0.05423686,138.67,138.63,6.80099288]
[1767652156544,1.68645077,138.67,138.63,6.80099288]
[1767652162452,0.05423686,138.67,138.63,6.80099288]
[1767652162652,1.68645077,138.67,138.63,6.80099288]
[1767652163154,1.68645077,138.67,138.63,0.30899288]
[1767652163858,1.99509942,138.67,138.61,0.30899288]
[1767652164454,0.30864865,138.66,138.61,0.30899288]
[1767652174665,6.79964865,138.66,138.61,0.30899288]
[1767652176962,1.9634832,138.65,138.59,0.31927401]
[1767652177163,1.63221391,138.63,138.59,0.31927401]
[1767652177768,0.04917705,138.62,138.55,1.63221391]
[1767652178069,0.04917705,138.62,138.56,0.31927401]
[1767652178666,0.04917705,138.62,138.57,6.81437401]
[1767652181874,0.04917705,138.62,138.58,0.31927401]
[1767652182568,6.82236929,138.66,138.61,0.31927401]
[1767652183773,6.82236929,138.66,138.62,0.04906615]
[1767652192380,6.4915,138.65,138.59,6.81347401]
[1767652192580,0.33126929,138.64,138.59,6.81347401]
[1767652194374,0.3190844,138.63,138.57,0.32660711]
[1767652195085,0.05002243,138.61,138.57,6.82140711]
[1767652195281,0.05002243,138.61,138.57,0.32660711]
[1767652196583,0.05002243,138.61,138.58,6.82110711]
[1767652200284,0.05002243,138.61,138.59,0.32660711]
[1767652200491,0.3190844,138.65,138.6,0.32660711]
[1767652201687,0.3190844,138.65,138.61,0.05397076]
[1767652207187,0.3190844,138.65,138.61,6.54717076]
[1767652210387,0.3190844,138.65,138.61,0.05397076]
[1767652210587,1.95129831,138.65,138.61,0.05397076]
[1767652215994,0.3190844,138.65,138.61,0.05397076]
[1767652222801,87.77093226,138.68,138.61,0.05397076]
[1767652222999,85.54871458,138.68,138.61,0.37324133]
[1767652223502,0.32871458,138.68,138.62,0.31927057]
[1767652224601,0.32871458,138.68,138.63,6.4923]
[1767652224798,0.32871458,138.7,138.63,0.31927057]
[1767652225404,0.32871458,138.7,138.65,0.36840865]
[1767652226303,0.32871458,138.7,138.65,6.85940865]
[1767652227007,0.32871458,138.7,138.66,6.4909]
[1767652228094,0.32871458,138.73,138.66,6.4909]
[1767652228704,0.32871458,138.73,138.65,0.31927057]
[1767652228905,0.32871458,138.72,138.68,0.05002268]
[1767652229107,0.32871458,138.72,138.65,0.31927057]
[1767652229503,0.37861282,138.71,138.65,0.31927057]
[1767652229699,0.32871458,138.7,138.65,0.31927057]
[1767652229908,0.32871458,138.7,138.64,6.4919]
[1767652231506,0.32871458,138.7,138.65,6.4912]
[1767652231703,0.32871458,138.7,138.65,6.82229156]
[1767652235409,0.32871458,138.7,138.65,0.33109156]
[1767652240919,6.81791458,138.7,138.65,0.33109156]
[1767652241713,0.32033862,138.69,138.63,6.4921]
[1767652241918,0.04989824,138.71,138.59,0.33109156]
[1767652241919,0.32033862,138.67,138.59,0.33109156]
[1767652242221,0.32033862,138.65,138.59,0.33109156]
[1767652242618,0.05227448,138.64,138.59,0.33109156]
[1767652248326,0.05227448,138.64,138.59,6.82529156]
[1767652252329,0.3726131,138.64,138.57,6.82589156]
[1767652252526,0.32033862,138.63,138.57,6.4948]
[1767652253021,6.81273862,138.63,138.57,0.33109156]
[1767652253328,0.04953433,138.61,138.57,0.33109156]
[1767652256321,0.35588645,138.61,138.55,0.33811578]
[1767652257525,6.4939,138.6,138.55,0.33811578]
[1767652261824,0.35588645,138.61,138.55,0.33811578]
[1767652264526,0.33049284,138.6,138.55,0.33811578]
[1767652269637,0.33049284,138.6,138.55,6.83421578]
[1767652272039,0.04953433,138.61,138.57,0.33551389]
[1767652272432,0.33049284,138.62,138.57,0.33551389]
[1767652272831,0.04698079,138.6,138.57,0.33551389]
[1767652273737,6.4927,138.63,138.57,0.33551389]
[1767652273943,0.33049284,138.64,138.58,0.33551389]
[1767652275342,0.33049284,138.64,138.59,0.33551389]
[1767652276134,0.33049284,138.64,138.6,0.04808737]
[1767652277540,0.33049284,138.63,138.56,0.33551389]
[1767652277746,0.38001554,138.63,138.56,0.33551389]
[1767652278638,1.96410586,138.62,138.56,0.33551389]
[1767652278840,0.33049284,138.61,138.56,0.33551389]
[1767652279640,0.04682101,138.6,138.56,0.33551389]
[1767652281145,0.04682101,138.6,138.54,6.83211389]
[1767652281346,0.04682101,138.6,138.55,0.33551389]
[1767652282946,0.04682101,138.6,138.55,6.83161389]
[1767652283139,0.04682101,138.6,138.56,0.33551389]
[1767652284643,0.33049284,138.65,138.58,0.33551389]
[1767652285943,0.33049284,138.65,138.6,0.05437618]
[1767652286338,1.96410586,138.64,138.6,0.05437618]
[1767652287148,6.4924,138.63,138.6,0.05437618]
[1767652290641,0.33049284,138.61,138.54,6.4961]
[1767652290842,1.63361302,138.6,138.54,6.83161389]
[1767652291243,1.95974632,138.6,138.54,0.33551389]
[1767652291947,0.04816799,138.58,138.54,0.33551389]
[1767652292946,0.04816799,138.58,138.54,6.83211389]
[1767652293544,0.04816799,138.58,138.54,0.33551389]
[1767652312558,2.00791431,138.58,138.5,7.75407367]
[1767652312862,0.3261333,138.57,138.5,6.4983]
[1767652313556,6.8213333,138.57,138.5,6.4983]
[1767652313756,0.05019265,138.55,138.5,6.4983]
[1767652314563,0.05019265,138.55,138.51,0.24500705]
[1767652331586,8.12821302,138.59,138.52,0.19467586]
[1767652331973,8.45208028,138.59,138.52,0.19467586]
[1767652332681,6.4948,138.58,138.52,0.19467586]
[1767652333780,0.32386726,138.59,138.54,0.19467586]
[1767652334281,85.60386726,138.61,138.55,0.19467586]
[1767652334584,85.60386726,138.61,138.55,1.82828888]
[1767652335588,85.60386726,138.61,138.55,8.32438888]
[1767652339488,0.32386726,138.6,138.55,1.82828888]
[1767652339688,0.32386726,138.6,138.55,0.19467586]
[1767652340290,85.28,138.61,138.55,0.19467586]
[1767652341586,85.28,138.61,138.56,0.19467586]
[1767652342485,0.32386726,138.62,138.56,0.19467586]
[1767652342686,0.32386726,138.62,138.57,0.19467586]
[1767652345392,92.07576726,138.64,138.57,6.68967586]
[1767652345597,0.32386726,138.66,138.58,0.19467586]
[1767652346685,0.32386726,138.66,138.57,2.55191561]
[1767652346686,0.32386726,138.66,138.59,6.68887586]
[1767652347087,0.32386726,138.66,138.61,6.4933]
[1767652348598,0.32386726,138.66,138.6,6.4938]
[1767652350500,0.32386726,138.65,138.6,6.4938]
[1767652350695,0.32386726,138.65,138.59,0.19467586]
[1767652351406,0.32307393,138.64,138.58,6.4943]
[1767652352306,2.87498954,138.63,138.57,0.1943828]
[1767652352506,0.32307393,138.62,138.57,0.1943828]
[1767652359708,0.32307393,138.62,138.57,6.6895828]
[1767652360403,2.55191561,138.64,138.58,6.6890828]
[1767652360404,0.32307393,138.64,138.58,6.6890828]
[1767652360803,0.32307393,138.64,138.59,0.1943828]
[1767652361110,0.32307393,138.64,138.59,6.6885828]
[1767652363107,6.4912,138.66,138.6,6.4937]
[1767652363313,0.32307393,138.66,138.6,0.1943828]
[1767652364011,0.32307393,138.66,138.61,6.4933]
[1767652370803,0.32307393,138.66,138.62,0.05053186]
[1767652371909,6.4919,138.64,138.57,6.4952]
[1767652372115,2.55191561,138.62,138.55,0.24491466]
[1767652372318,0.32307393,138.64,138.55,0.24491466]
[1767652372514,0.32307393,138.64,138.54,101.0554]
[1767652372515,0.32307393,138.63,138.57,6.74001466]
[1767652372713,0.32307393,138.63,138.55,0.24491466]
[1767652372912,0.32307393,138.62,138.55,0.24491466]
[1767652373318,0.04889584,138.6,138.55,0.24491466]
[1767652373719,0.04889584,138.6,138.55,6.74081466]
[1767652374616,0.04889584,138.6,138.56,6.74050458]
[1767652381525,0.04889584,138.6,138.57,6.4949]
[1767652381724,2.55191561,138.64,138.58,0.24487241]
[1767652381725,0.33430231,138.64,138.58,0.24487241]
[1767652382429,0.33430231,138.64,138.57,6.4949]
[1767652382729,0.33430231,138.63,138.57,6.4949]
[1767652383128,0.33430231,138.63,138.57,6.73977241]
[1767652389142,6.82670231,138.63,138.57,6.73977241]
[1767652399051,0.33430231,138.63,138.58,6.4946]
[1767652399245,6.82620231,138.65,138.58,0.24487241]
[1767652400143,0.33430231,138.65,138.59,6.73907241]
[1767652400950,0.33430231,138.65,138.6,0.24487241]
[1767652402946,0.33430231,138.67,138.61,0.24487241]
[1767652403455,92.06390231,138.69,138.62,6.73767241]
[1767652403648,92.06390231,138.69,138.63,0.24487241]
[1767652404355,0.33430231,138.68,138.63,0.24487241]
[1767652405350,0.33430231,138.68,138.63,6.73717241]
[1767652405958,85.24,138.69,138.63,0.24487241]
[1767652408558,85.24,138.69,138.63,6.73717241]
[1767652411055,100.9156,138.74,138.63,6.73717241]
[1767652411056,0.33821162,138.72,138.65,0.24463637]
[1767652412652,0.33821162,138.72,138.66,6.491]
[1767652415763,8.12034413,138.73,138.65,0.24463637]
[1767652415764,0.33821162,138.71,138.65,0.24463637]
[1767652416261,8.45945575,138.71,138.65,6.73603637]
[1767652421267,1.97085575,138.71,138.65,6.73603637]
[1767652422571,1.97085575,138.71,138.66,0.24463637]
[1767652422769,1.97085575,138.73,138.67,0.24463637]
[1767652424573,8.45855575,138.73,138.67,0.24463637]
[1767652425072,0.33821162,138.72,138.67,0.24463637]
[1767652427675,0.04816516,138.71,138.67,0.24463637]
[1767652427875,0.04816516,138.71,138.68,0.04934274]
[1767652428880,0.04816516,138.71,138.68,0.29397911]
[1767652429281,85.55821162,138.74,138.69,6.4895]
[1767652431083,92.04551162,138.74,138.68,0.29397911]
[1767652434185,0.33821162,138.73,138.68,0.29397911]
[1767652436291,6.82591162,138.73,138.68,0.29397911]
[1767652437896,8.45855575,138.73,138.68,0.29397911]
[1767652440085,0.3272774,138.72,138.68,0.04934274]
[1767652440601,0.04597076,138.71,138.68,0.04934274]
[1767652445399,0.32019763,138.74,138.68,6.78365483]
[1767652445605,1.95284176,138.74,138.68,6.78365483]
[1767652447302,1.95284176,138.74,138.69,6.4895]
[1767652449107,1.95284176,138.74,138.69,6.73391209]
[1767652452808,1.63264413,138.74,138.69,6.73391209]
[1767652456015,1.63264413,138.74,138.7,0.24441209]
[1767652457615,1.95284176,138.75,138.7,6.73341209]
[1767652458612,1.95284176,138.77,138.71,6.78405041]
[1767652459019,1.95284176,138.77,138.71,6.73301209]
[1767652459419,1.95284176,138.77,138.73,0.04866673]
[1767652464623,0.32019763,138.77,138.73,0.04866673]
[1767652474933,0.32723741,138.76,138.7,6.73326935]
[1767652476225,0.32723741,138.76,138.72,0.05387494]
[1767652485730,0.32723741,138.77,138.72,0.29834429]
[1767652486537,0.32723741,138.77,138.72,6.78634429]
[1767652488941,85.50723741,138.79,138.73,0.24446935]
[1767652490742,85.50723741,138.79,138.74,6.4872]
[1767652491441,85.50723741,138.79,138.75,0.05476749]
[1767652499349,0.3247915,138.78,138.72,6.4877]
[1767652499752,0.3247915,138.77,138.71,6.4886]
[1767652505670,0.3247915,138.77,138.71,6.73309752]
[1767652513260,0.3247915,138.77,138.72,6.488]
[1767652513465,6.4855,138.78,138.73,0.24449752]
[1767652514267,6.79169733,138.78,138.73,0.24449752]
[1767652514571,85.18,138.79,138.74,0.0461053]
[1767652514763,85.48619733,138.79,138.74,0.0461053]
[1767652514965,85.48619733,138.79,138.74,6.77780282]
[1767652515959,0.30619733,138.79,138.74,6.77780282]
[1767652517272,0.30619733,138.81,138.75,0.24449752]
[1767652518668,0.30619733,138.81,138.76,6.4863]
[1767652519469,0.30619733,138.81,138.77,0.05507538]
[1767652521972,6.78919733,138.83,138.77,6.7853729]
[1767652522571,0.30619733,138.83,138.78,6.4852]
[1767652524678,0.30619733,138.83,138.78,6.72969752]
[1767652526565,1.6282321,138.84,138.79,0.24449752]
[1767652526782,8.41702943,138.84,138.79,0.24449752]
[1767652526978,0.30619733,138.84,138.79,6.72929752]
[1767652527374,0.30619733,138.84,138.8,0.05344258]
[1767652529773,0.30619733,138.86,138.8,6.7822401]
[1767652529979,1.93442943,138.86,138.8,6.7822401]
[1767652530478,0.30619733,138.86,138.8,6.7822401]
[1767652532479,0.30619733,138.86,138.81,6.4839]
[1767652532679,0.30619733,138.86,138.81,6.7280567]
[1767652534579,0.32853646,138.88,138.82,0.2441567]
[1767652534787,1.95676856,138.88,138.82,0.2441567]
[1767652535474,1.95676856,138.88,138.84,0.04993095]
[1767652535674,0.32853646,138.88,138.84,0.04993095]
[1767652539079,0.32853646,138.88,138.84,6.53233095]
[1767652539684,35.14421105,138.89,138.84,6.77648765]
[1767652542584,35.14421105,138.89,138.85,6.7261567]
[1767652542789,0.32853646,138.9,138.85,6.7261567]
[1767652551296,1.95676856,138.9,138.85,6.7261567]
[1767652551495,1.6282321,138.9,138.86,0.2441567]
[1767652551998,1.6282321,138.9,138.86,6.7257567]
[1767652553895,1.6282321,138.9,138.86,0.2441567]
[1767652557100,1.6282321,138.9,138.86,6.7257567]
[1767652559901,1.6282321,138.9,138.87,6.4811]
[1767652560795,85.1,138.95,138.87,6.5311415]
[1767652561001,1.6282321,138.91,138.87,6.5311415]
[1767652561396,1.6282321,138.91,138.87,6.83914298]
[1767652562697,1.6282321,138.92,138.87,6.83914298]
[1767652563096,1.6282321,138.92,138.88,6.78860148]
[1767652563698,1.9359633,138.93,138.88,6.78860148]
[1767652570611,1.6282321,138.95,138.9,0.30800148]
[1767652570811,1.6282321,138.93,138.9,0.30800148]
[1767652571507,1.6282321,138.93,138.9,0.35658598]
[1767652577215,1.9359633,138.95,138.9,0.35658598]
[1767652578723,1.9359633,138.95,138.9,6.83628598]
[1767652579018,1.9359633,138.98,138.91,0.30800148]
[1767652579808,1.9359633,138.98,138.93,0.05526091]
[1767652586618,0.3077312,138.98,138.93,0.05526091]
[1767652588220,0.3077312,138.98,138.93,6.84156239]
[1767652588824,0.3077312,138.98,138.93,0.36326239]
[1767652589026,0.3077312,138.98,138.93,0.05526091]
[1767652589533,0.3077312,138.97,138.93,0.05526091]
[1767652601140,0.31920558,138.99,138.93,0.37264247]
[1767652601337,0.31920558,138.99,138.93,0.05526091]
[1767652601938,6.79570558,138.97,138.93,0.05526091]
[1767652608245,0.31920558,138.97,138.93,0.05526091]
[1767652615254,6.476,138.98,138.93,0.05526091]
[1767652615449,6.79773493,138.98,138.93,0.37460319]
[1767652616256,0.32173493,139.0,138.93,0.37460319]
[1767652616753,0.32173493,139.0,138.93,0.31934228]
[1767652617248,0.32173493,139.0,138.95,0.05083883]
[1767652618055,6.79843493,138.97,138.9,0.31934228]
[1767652620251,6.79843493,138.97,138.9,6.79904228]
[1767652620455,6.79843493,138.97,138.91,0.31934228]
[1767652620656,0.32173493,138.97,138.91,0.31934228]
[1767652625756,0.32173493,138.97,138.92,0.30824118]
[1767652628258,0.32173493,138.97,138.92,6.78694118]
[1767652629652,6.79569418,138.99,138.93,0.30824118]
[1767652630358,6.79569418,138.99,138.93,6.78654118]
[1767652634262,0.31989418,138.99,138.93,6.78654118]
[1767652635465,0.31989418,138.99,138.94,0.30824118]
[1767652636164,6.79479418,139.01,138.94,0.30824118]
[1767652636664,0.31989418,139.0,138.94,0.30824118]
[1767652637064,0.31989418,139.0,138.96,0.05025425]
[1767652637257,0.04599276,138.98,138.96,0.05025425]
[1767652645975,0.04599276,138.98,138.94,0.30824118]
[1767652648284,0.04599276,138.98,138.94,6.78614118]
[1767652658799,0.04599276,138.98,138.95,0.04554054]
[1767652664104,0.3563768,138.98,138.92,0.33366647]
[1767652664304,1.98110727,138.98,138.92,0.33366647]
[1767652664504,8.41111451,138.98,138.92,6.81236647]
[1767652665497,0.04627871,138.96,138.92,6.81236647]
[1767652666499,0.04627871,138.96,138.92,0.33366647]
[1767652676113,1.67100918,138.96,138.92,0.33366647]
[1767652677215,1.98331537,138.96,138.91,6.4791]
[1767652677415,1.98331537,138.96,138.91,6.81190313]
[1767652680422,1.98331537,138.96,138.91,0.33280313]
[1767652680822,0.04627871,138.96,138.92,0.38730058]
[1767652681319,0.33459998,139.0,138.93,0.33522086]
[1767652682714,0.052476,138.98,138.94,6.81292086]
[1767652683423,0.33459998,139.0,138.95,0.33522086]
[1767652685514,91.495,139.01,138.95,0.33522086]
[1767652686921,0.04818087,138.99,138.95,0.33522086]
[1767652687324,0.04818087,138.99,138.97,0.05540045]
[1767652687516,1.95933045,139.02,138.97,0.39062131]
[1767652687722,0.33459998,139.02,138.97,0.39062131]